bitfinex-derivatives/quotes_ETHF0:USTF0_20250616
["timestamp","ask_amount","ask_price","bid_price","bid_amount"]
[1750114644182,0.77759,2571.1,2570.7,0.77769]
[1750114644374,14.89752029,2571.2,2570.7,3.20779182]
[1750114644574,0.77758,2571.1,2570.8,3.20779182]
[1750114644776,3.2078,2571.0,2570.8,3.20779182]
[1750114644975,0.77764,2570.9,2570.6,0.77772]
[1750114645180,0.77764,2570.9,2570.8,3.20779182]
[1750114645382,3.2078,2571.0,2570.8,3.98545182]
[1750114645684,3.98542,2571.0,2570.7,0.77768]
[1750114645877,3.2078,2571.0,2570.8,3.98546182]
[1750114646072,3.2078,2571.0,2570.8,3.98544182]
[1750114646271,3.98541,2571.0,2570.7,0.77768]
[1750114646482,3.98541,2571.0,2570.8,3.20779182]
[1750114646682,3.98541,2571.0,2570.7,0.77768]
[1750114646882,3.98541,2571.0,2570.8,3.20779182]
[1750114647077,3.2078,2571.0,2570.8,3.98546182]
[1750114647276,3.98541,2571.0,2570.8,0.77767]
[1750114647483,3.98541,2571.0,2570.7,0.77768]
[1750114647783,3.98541,2571.0,2570.8,3.20779182]
[1750114647982,0.77765,2570.9,2570.7,0.7777]
[1750114648180,3.98542,2571.0,2570.8,3.98545182]
[1750114648384,8.67742029,2571.2,2570.8,3.20779182]
[1750114648595,0.77761,2571.0,2570.5,6.3064]
[1750114648884,0.77761,2571.0,2570.8,3.20779182]
[1750114649083,6.30381946,2570.9,2570.8,3.20779182]
[1750114649282,6.30381946,2570.9,2570.7,0.77769]
[1750114649580,0.77759,2571.1,2570.8,3.20779182]
[1750114649581,6.30381946,2571.1,2570.8,3.20779182]
[1750114649885,6.30381946,2571.1,2570.9,3.98543182]
[1750114650085,3.2078,2571.2,2571.0,3.20779182]
[1750114650280,7.08140946,2571.1,2570.8,0.77766]
[1750114650583,0.77761,2571.0,2570.7,3.98548]
[1750114650888,7.08150946,2570.8,2570.5,0.77775]
[1750114651182,6.30381946,2570.6,2570.5,3.98554182]
[1750114652680,6.30381946,2570.6,2569.2,3.2078]
[1750114652681,14.51161946,2570.6,2569.2,3.2078]
[1750114652885,6.30381946,2569.8,2569.5,0.77805]
[1750114653076,6.30381946,2569.8,2569.6,0.77801]
[1750114653274,6.30381946,2569.8,2569.4,0.77808]
[1750114653474,6.30381946,2569.8,2569.2,9.2739]
[1750114653681,6.3483,2570.5,2569.7,11.42142851]
[1750114653682,9.5561,2570.5,2569.7,11.42142851]
[1750114653884,6.30381946,2570.6,2570.2,3.20779182]
[1750114654092,1.94449,2570.4,2569.7,0.00583669]
[1750114654387,1.24761347,2570.3,2570.1,0.77788]
[1750114654585,3.2078,2570.4,2570.3,3.20779182]
[1750114654889,8.66812923,2570.9,2570.3,3.20779182]
[1750114655188,0.77768,2570.8,2570.5,3.20779182]
[1750114655384,8.66812923,2570.9,2570.5,3.20779182]
[1750114655586,0.77779,2570.4,2570.1,0.77786]
[1750114655790,0.77773,2570.6,2570.5,3.20779182]
[1750114655983,3.2078,2570.7,2570.5,3.20779182]
[1750114656183,3.98551,2570.7,2570.5,3.20779182]
[1750114656487,3.2078,2570.7,2570.5,3.20779182]
[1750114656785,8.66812923,2571.1,2570.6,3.20779182]
[1750114656991,1.94336,2571.9,2571.0,3.20779182]
[1750114656992,8.66812923,2571.5,2571.0,3.20779182]
[1750114657180,8.66812923,2571.5,2571.1,3.20779182]
[1750114657387,0.77758,2571.1,2571.0,3.21362851]
[1750114657880,0.7775,2571.4,2571.0,3.99120851]
[1750114658078,11.87592923,2571.5,2571.0,0.00583669]
[1750114658390,1.25079834,2571.4,2571.0,3.21362851]
[1750114658590,1.25079834,2571.3,2571.0,3.21362851]
[1750114658791,1.25079834,2571.3,2571.0,0.00583669]
[1750114658987,2.14688631,2571.9,2571.8,0.77736]
[1750114659187,3.2078,2572.9,2572.0,3.20779182]
[1750114659386,0.77721,2572.3,2572.2,0.00583669]
[1750114659588,2.02978385,2572.3,2572.2,0.00583669]
[1750114660692,1.25257385,2572.3,2572.2,0.00583669]
[1750114660890,2.02978385,2572.3,2572.2,0.00583669]
[1750114661285,1.25257385,2572.3,2572.2,0.00583669]
[1750114661482,11.87592923,2572.5,2572.2,0.00583669]
[1750114661694,1.25158094,2572.4,2572.2,0.00583669]
[1750114661893,0.77718,2572.4,2572.2,0.00583669]
[1750114662187,0.77721,2572.3,2572.2,0.00583669]
[1750114662695,3.2078,2572.5,2572.4,0.77718]
[1750114662993,0.77712,2572.7,2572.4,3.20779182]
[1750114663286,3.2078,2572.9,2572.6,3.20779182]
[1750114663486,3.98485,2572.9,2572.6,3.20779182]
[1750114663785,3.98485,2572.9,2572.4,3.2078]
[1750114663993,3.2078,2572.9,2572.6,3.20779182]
[1750114664184,0.77706,2572.8,2572.6,3.20779182]
[1750114664387,3.2078,2572.9,2572.2,0.00583669]
[1750114664591,0.77712,2572.6,2572.5,3.20779182]
[1750114664983,3.2078,2572.9,2572.5,3.20779182]
[1750114665183,3.2078,2572.9,2572.8,3.98485182]
[1750114665390,3.2078,2573.6,2572.8,3.20779182]
[1750114665591,3.2078,2573.6,2573.3,3.98468182]
[1750114665792,3.2078,2573.6,2573.0,3.2078]
[1750114665793,3.2078,2573.6,2573.5,3.20779182]
[1750114666002,0.77697,2573.1,2573.0,3.9722]
[1750114666291,0.77697,2573.1,2572.5,44.8]
[1750114666292,3.2078,2573.3,2572.8,0.77704]
[1750114666493,3.2078,2573.3,2573.0,3.20779182]
[1750114666697,0.77697,2573.1,2573.0,3.20779182]
[1750114666906,0.77703,2573.0,2572.7,0.77708]
[1750114667091,11.40028,2573.3,2572.9,3.20779182]
[1750114667287,0.77703,2572.9,2572.5,51.82143]
[1750114667590,3.2078,2573.7,2573.1,3.20779182]
[1750114667894,0.77696,2573.2,2573.1,3.20779182]
[1750114668204,0.77687,2573.5,2573.4,3.20779182]
[1750114668490,11.87592923,2573.8,2573.0,0.77698]
[1750114668696,3.2078,2573.2,2572.9,3.20779182]
[1750114668890,13.81828923,2573.2,2572.5,48.0078]
[1750114669091,0.777,2573.0,2572.9,3.20779182]
[1750114669294,0.77709,2572.7,2572.6,6.2443]
[1750114669493,3.2078,2573.0,2572.8,3.20779182]
[1750114669894,0.77703,2572.9,2572.8,3.20779182]
[1750114670395,0.77709,2572.7,2572.6,6.2443]
[1750114670788,0.77712,2572.6,2572.5,44.8]
[1750114671296,3.2078,2573.0,2572.5,48.00779182]
[1750114671499,3.2078,2573.0,2572.7,3.20779182]
[1750114671706,2.14688631,2574.1,2572.9,3.98481182]
[1750114671707,0.77694,2573.2,2572.9,3.98481182]
[1750114671898,3.2078,2573.3,2573.2,3.20779182]
[1750114672296,3.2078,2573.3,2573.2,3.98473182]
[1750114672787,3.2078,2573.3,2573.2,3.20779182]
[1750114672991,3.98471,2573.3,2573.2,3.20779182]
[1750114673394,3.2078,2573.3,2573.2,3.20779182]
[1750114673595,3.2078,2573.3,2573.2,3.98473182]
[1750114673800,3.2078,2573.3,2573.2,3.20779182]
[1750114673997,3.98471,2573.3,2573.2,3.20779182]
[1750114674295,0.77699,2573.1,2572.6,3.9163]
[1750114674500,3.2078,2573.3,2573.0,3.20779182]
[1750114674702,0.77697,2573.1,2573.0,3.20779182]
[1750114674894,0.777,2573.0,2572.7,7.05658]
[1750114675095,6.29250506,2573.2,2572.9,3.20779182]
[1750114675403,0.77706,2572.8,2572.7,6.2795]
[1750114675590,0.77705,2572.9,2572.6,0.77712]
[1750114675794,0.77705,2572.9,2572.7,0.77709]
[1750114675995,0.77705,2572.9,2572.8,3.20779182]
[1750114677207,7.06955506,2572.9,2572.8,3.20779182]
[1750114677503,0.77712,2572.6,2572.5,44.8]
[1750114677906,0.77712,2572.6,2572.5,48.00779182]
[1750114679596,3.98491,2572.7,2572.5,48.78493182]
[1750114679799,3.2078,2572.7,2572.5,48.78493182]
[1750114680012,6.29250506,2572.9,2572.5,48.00779182]
[1750114680198,6.29250506,2573.0,2572.6,3.20779182]
[1750114680395,7.06936506,2573.5,2573.0,3.98479182]
[1750114680597,7.06937506,2573.5,2573.3,3.20779182]
[1750114680804,6.29250506,2573.5,2573.4,0.77688]
[1750114681200,3.2078,2573.7,2573.0,6.2925]
[1750114681398,0.77685,2573.5,2573.4,3.20779182]
[1750114681600,3.2078,2573.7,2573.4,3.20779182]
[1750114681806,3.2078,2573.7,2573.6,3.98461182]
[1750114682003,3.8253,2574.3,2573.1,1.94237]
[1750114682004,3.2078,2574.3,2573.9,3.20779182]
[1750114682205,6.29250506,2574.7,2573.1,6.29250506]
[1750114682206,9.50030506,2574.7,2574.2,3.20779182]
[1750114682509,0.77663,2574.3,2574.0,3.20779182]
[1750114682802,6.29250506,2574.4,2574.2,3.20779182]
[1750114683009,0.77653,2574.6,2574.3,3.98438182]
[1750114683308,9.50030506,2574.7,2574.1,6.2592]
[1750114683510,6.29250506,2574.4,2574.2,3.20779182]
[1750114683710,6.29250506,2574.4,2574.1,6.2592]
[1750114683899,6.29250506,2574.4,2574.3,3.20779182]
[1750114684105,6.29250506,2574.6,2574.3,3.20779182]
[1750114684400,0.77658,2574.4,2574.3,3.20779182]
[1750114684601,6.29250506,2574.6,2574.1,6.2592]
[1750114684808,0.77661,2574.3,2574.2,3.20779182]
[1750114685016,0.77668,2574.1,2573.8,3.99038669]
[1750114685316,12.76100506,2574.6,2573.8,0.00583669]
[1750114685317,0.77673,2573.9,2573.8,0.00583669]
[1750114685503,10.27703506,2573.9,2573.8,0.00583669]
[1750114686199,8.98453,2573.9,2573.8,6.69e-06]
[1750114686403,0.77695,2573.2,2572.9,0.77701]
[1750114686708,7.06952506,2573.0,2572.9,3.20779182]
[1750114686911,0.77708,2572.8,2572.6,6.3732]
[1750114687101,6.29250506,2573.0,2572.2,0.77721]
[1750114687299,7.06959506,2572.7,2572.6,3.20779182]
[1750114687501,7.06959506,2572.7,2572.4,0.77717]
[1750114687706,7.06959506,2572.7,2572.6,3.20779182]
[1750114687915,6.29250506,2572.7,2572.6,3.20779182]
[1750114688099,0.77706,2572.8,2572.6,3.20779182]
[1750114688303,0.78287669,2572.9,2572.8,3.20779182]
[1750114688701,0.00583669,2572.9,2572.3,0.00583669]
[1750114688906,0.77709,2572.7,2572.6,3.20779182]
[1750114689212,7.06959506,2572.7,2572.6,3.20779182]
[1750114689508,0.77713,2572.6,2572.3,0.78302669]
[1750114689901,9.50030506,2572.7,2572.3,0.00583669]
[1750114690411,0.00583669,2572.9,2572.6,6.41559182]
[1750114690715,0.00583669,2572.9,2572.8,3.98485182]
[1750114690912,0.77677,2573.8,2572.8,0.77706]
[1750114691206,9.50030506,2573.9,2573.7,3.20779182]
[1750114691406,3.2078,2574.3,2573.8,3.20779182]
[1750114691614,3.98443,2574.3,2574.1,3.20779182]
[1750114692111,0.7767,2574.0,2573.9,0.00583669]
[1750114692301,0.7767,2574.0,2573.9,3.21362851]
[1750114692606,10.27700506,2574.0,2573.9,0.00583669]
[1750114694400,15.27700506,2574.0,2573.9,0.00583669]
[1750114694606,0.77688,2573.5,2573.1,0.77696]
[1750114694803,6.29250506,2573.5,2573.2,3.20779182]
[1750114695008,6.29250506,2573.6,2573.4,3.20779182]
[1750114695210,6.29250506,2573.6,2573.5,3.20779182]
[1750114695710,15.74273111,2573.6,2572.7,3.2078]
[1750114695910,7.06944506,2573.2,2573.1,2.05071182]
[1750114696105,6.29250506,2573.2,2573.1,2.05071182]
[1750114696412,6.29250506,2573.2,2572.6,0.77711]
[1750114696413,0.77703,2572.9,2572.6,0.77711]
[1750114696812,0.77703,2572.9,2572.8,2.05071182]
[1750114697014,3.2078,2573.0,2572.8,2.82776182]
[1750114697212,3.2078,2573.0,2572.9,2.05071182]
[1750114697408,3.9848,2573.0,2572.9,2.05071182]
[1750114697613,3.9848,2573.0,2572.5,0.00583669]
[1750114697614,3.2078,2573.0,2572.5,0.00583669]
[1750114697811,0.77709,2572.7,2572.6,2.05071182]
[1750114698009,7.06957506,2572.8,2572.6,2.05071182]
[1750114698219,7.06957506,2572.8,2572.6,2.82783182]
[1750114698409,0.77709,2572.7,2572.6,2.05071182]
[1750114698820,6.29250506,2572.8,2572.6,2.05071182]
[1750114699023,0.00583669,2572.9,2572.7,2.82779182]
[1750114699215,0.78286669,2572.9,2572.7,2.05071182]
[1750114699413,0.78286669,2572.9,2572.5,0.78297669]
[1750114699718,0.78287669,2572.9,2572.7,2.05071182]
[1750114699918,0.77706,2572.8,2572.7,2.05071182]
[1750114700115,0.00583669,2572.9,2572.6,6.7048]
[1750114700116,0.77709,2572.7,2572.6,6.7048]
[1750114700316,0.00583669,2572.9,2572.8,2.05071182]
[1750114700513,0.78287669,2572.9,2572.8,2.05071182]
[1750114700821,0.77709,2572.8,2572.6,6.7048]
[1750114701118,0.77709,2572.8,2572.6,2.05071182]
[1750114701119,3.98489,2572.7,2572.6,2.05071182]
[1750114701617,0.77712,2572.6,2572.5,0.00583669]
[1750114702010,0.77712,2572.6,2572.5,2.05654851]
[1750114702211,3.9849,2572.7,2572.5,2.05654851]
[1750114702417,3.2078,2572.7,2572.6,6.17]
[1750114702609,0.77706,2572.8,2572.6,8.22071182]
[1750114702817,0.78288669,2572.9,2572.8,2.05071182]
[1750114703421,0.78286669,2572.9,2572.8,2.05071182]
[1750114704820,0.00583669,2572.9,2572.8,7.82777182]
[1750114705015,3.2078,2573.7,2572.8,26.57417182]
[1750114705219,3.98462,2573.7,2573.6,2.05071182]
[1750114705420,3.98462,2573.7,2573.4,0.77686]
[1750114705620,3.2078,2573.7,2573.5,2.05071182]
[1750114705816,6.29250506,2573.6,2573.5,2.05071182]
[1750114706021,0.77692,2573.3,2573.0,0.77699]
[1750114706323,0.77694,2573.2,2573.1,2.05071182]
[1750114706523,0.77693,2573.3,2573.1,2.05071182]
[1750114706725,6.29250506,2573.6,2573.4,2.05071182]
[1750114706910,9.50030506,2573.6,2573.2,0.77691]
[1750114707116,0.00583669,2573.8,2573.5,2.05071182]
[1750114707416,0.77681,2573.7,2573.4,0.77687]
[1750114707620,0.77682,2573.6,2573.5,2.05071182]
[1750114708521,3.98462,2573.6,2573.5,2.05071182]
[1750114709119,3.2078,2573.6,2573.0,3.2078]
[1750114709319,0.77691,2573.3,2573.2,2.05071182]
[1750114709820,0.77691,2573.3,2573.0,3.2078]
[1750114709821,0.77697,2573.1,2572.8,0.77705]
[1750114710122,6.29250506,2573.0,2572.9,2.05071182]
[1750114710327,0.77694,2573.2,2573.1,2.05071182]
[1750114710930,9.50030506,2573.6,2573.1,2.05071182]
[1750114711121,9.50030506,2573.6,2572.9,6.3787]
[1750114711122,0.77693,2573.3,2573.2,2.05071182]
[1750114711325,0.77693,2573.3,2572.9,6.3787]
[1750114711326,0.777,2573.0,2572.9,6.3787]
[1750114711523,6.29250506,2573.2,2572.9,2.05071182]
[1750114711721,3.2078,2573.0,2572.5,0.00583669]
[1750114712028,0.77712,2572.6,2572.5,0.00583669]
[1750114712528,0.77711,2572.7,2572.5,2.05654851]
[1750114712725,0.77711,2572.7,2572.6,2.05071182]
[1750114713432,0.77705,2572.9,2572.6,2.05071182]
[1750114713726,3.2078,2573.0,2572.7,2.05071182]
[1750114713923,0.77706,2572.8,2572.7,2.05071182]
[1750114714231,0.77712,2572.6,2572.5,0.00583669]
[1750114714428,0.77711,2572.7,2572.6,2.05071182]
[1750114716122,0.77708,2572.8,2572.6,2.05071182]
[1750114716428,0.77709,2572.7,2572.6,2.05071182]
[1750114716926,0.77712,2572.6,2572.5,0.00583669]
[1750114717127,3.2078,2573.0,2572.6,2.05071182]
[1750114717424,3.2078,2573.3,2573.2,2.82763182]
[1750114717625,3.9846,2573.7,2573.5,0.77685]
[1750114717929,3.9846,2573.7,2573.6,8.55701182]
[1750114718126,3.9846,2573.7,2573.6,2.05071182]
[1750114718326,3.2078,2573.7,2573.2,6.6485]
[1750114718531,3.9846,2573.7,2573.6,2.05071182]
[1750114718727,3.2078,2573.7,2573.6,2.82753182]
[1750114718928,3.98459,2573.7,2573.5,0.77684]
[1750114719120,0.00583669,2573.8,2573.6,2.05071182]
[1750114719327,0.00583669,2573.8,2573.7,2.82750182]
[1750114721023,0.00583669,2573.8,2573.7,2.05071182]
[1750114721024,0.78259669,2573.8,2573.7,2.05071182]
[1750114721229,0.00583669,2573.8,2573.7,2.82750182]
[1750114722526,0.77669,2574.1,2573.7,2.05071182]
[1750114722727,0.77669,2574.1,2574.0,2.05071182]
[1750114722922,3.2078,2574.3,2574.0,2.05071182]
[1750114723233,1.94106,2575.0,2573.8,9.594]
[1750114723234,3.2078,2574.6,2574.2,2.05071182]
[1750114723536,9.50030506,2574.6,2574.2,2.05071182]
[1750114723726,3.98441,2574.3,2574.1,0.00583669]
[1750114723929,0.77664,2574.2,2574.1,0.00583669]
[1750114724433,0.77664,2574.2,2574.1,2.05654851]
[1750114724827,7.06914506,2574.2,2574.1,0.00583669]
[1750114725630,0.77664,2574.2,2574.1,0.00583669]
[1750114726931,0.77664,2574.2,2574.1,2.05654851]
[1750114727128,3.2078,2574.3,2574.1,2.05654851]
[1750114727330,3.98441,2574.3,2574.2,8.80561182]
[1750114727927,3.2078,2574.3,2574.2,9.58225182]
[1750114728125,0.77661,2574.3,2574.2,8.80561182]
[1750114728330,0.77661,2574.3,2574.2,2.05071182]
[1750114728532,7.06911506,2574.3,2574.2,2.05071182]
[1750114728839,6.29250506,2574.3,2574.2,2.05071182]
[1750114729036,0.77656,2574.5,2574.2,2.05071182]
[1750114729233,6.29250506,2574.6,2574.4,2.05071182]
[1750114729536,0.77659,2574.4,2574.2,7.53152]
[1750114729738,0.77662,2574.3,2574.1,0.78250669]
[1750114729929,0.7766,2574.4,2574.2,0.77664]
[1750114730130,6.29250506,2574.3,2574.1,0.00583669]
[1750114730330,3.2078,2574.7,2574.3,2.05071182]
[1750114730536,3.2078,2574.7,2574.6,2.82723182]
[1750114730741,3.2078,2574.7,2571.3,3.2078]
[1750114730742,3.88479,2573.2,2571.3,3.2078]
[1750114730933,6.29250506,2571.4,2571.3,0.77751]
[1750114731234,3.2078,2571.4,2570.5,0.77776]
[1750114731432,3.2078,2571.4,2571.3,3.98531]
[1750114731632,0.00583669,2571.6,2571.3,17.2058]
[1750114731827,3.2078,2571.4,2571.1,0.00583669]
[1750114732235,3.2078,2571.4,2571.3,3.2078]
[1750114735744,3.98528,2571.4,2571.3,3.2078]
[1750114736038,3.98528,2571.4,2571.1,0.00583669]
[1750114736235,0.77753,2571.3,2571.2,3.2078]
[1750114736433,7.07003506,2571.3,2571.2,3.2078]
[1750114736639,6.29250506,2571.3,2571.2,3.2078]
[1750114738742,6.29250506,2571.3,2571.2,3.98534]
[1750114739441,6.29250506,2571.3,2571.2,3.2078]
[1750114739944,6.29250506,2571.3,2571.2,3.98534]
[1750114740245,0.77754,2571.2,2571.1,0.00583669]
[1750114740437,6.96254,2571.2,2571.1,0.00583669]
[1750114740940,6.185,2571.2,2571.1,0.00583669]
[1750114741140,6.96254,2571.2,2571.1,0.00583669]
[1750114741936,3.2078,2571.4,2571.2,0.77754]
[1750114742137,3.2078,2571.4,2571.3,3.98531]
[1750114743138,0.00583669,2571.6,2571.5,0.77745]
[1750114743445,0.00583669,2571.6,2571.5,3.98525]
[1750114743940,0.00583669,2571.6,2571.5,3.2078]
[1750114744142,0.00583669,2571.6,2571.1,0.00583669]
[1750114744346,0.00583669,2571.6,2571.5,0.77745]
[1750114744646,9.50614175,2571.6,2571.3,3.2078]
[1750114744835,6.214,2571.5,2571.3,3.2078]
[1750114745038,9.50614175,2571.6,2571.5,0.77745]
[1750114745438,9.50614175,2571.6,2571.5,3.98525]
[1750114745746,14.50614175,2571.6,2571.2,0.77753]
[1750114745938,9.50030506,2571.3,2571.1,0.78338669]
[1750114746238,9.50030506,2571.3,2571.1,0.00583669]
[1750114746646,9.50030506,2571.3,2571.2,0.77754]
[1750114747148,9.50030506,2571.3,2571.1,0.00583669]
[1750114747341,10.27783506,2571.3,2571.1,0.00583669]
[1750114747547,6.2155,2571.2,2571.1,0.78340669]
[1750114747748,9.50030506,2571.3,2571.1,0.78340669]
[1750114747749,9.50030506,2571.3,2571.2,0.77754]
[1750114749948,9.50030506,2571.3,2571.1,0.78338669]
[1750114750154,9.50030506,2571.3,2571.2,0.77754]
[1750114751350,9.50030506,2571.3,2571.2,3.98534]
[1750114751550,9.50030506,2571.3,2571.2,10.51524]
[1750114752452,9.50030506,2571.3,2571.2,0.77754]
[1750114755849,9.50030506,2571.3,2571.2,3.98534]
[1750114756148,3.2078,2571.3,2571.2,3.98534]
[1750114756353,3.2078,2571.3,2571.2,10.31574]
[1750114756548,3.2078,2571.3,2571.1,0.00583669]
[1750114756750,3.2078,2571.3,2569.3,1.94529]
[1750114756751,3.2078,2571.0,2569.3,1.94529]
[1750114756950,3.2078,2570.2,2570.1,3.98568]
[1750114757560,3.2078,2570.6,2570.5,0.77774]
[1750114758160,9.50030506,2570.6,2570.5,3.98554]
[1750114758950,3.2078,2570.6,2570.5,3.98554]
[1750114759260,6.29250506,2570.9,2570.8,0.77766]
[1750114759464,6.35987912,2570.9,2570.8,3.98546]
[1750114760462,6.29250506,2570.9,2570.8,3.98546]
[1750114764060,6.29250506,2570.9,2570.4,6.2604]
[1750114764256,6.29250506,2570.9,2570.8,0.77766]
[1750114764452,9.50030506,2570.9,2570.8,3.98546]
[1750114764954,8.87315748,2570.9,2570.8,3.98546]
[1750114767353,3.2078,2570.9,2570.8,3.98546]
[1750114768766,8.87315748,2571.8,2571.5,0.77745]
[1750114769061,8.87315748,2571.8,2571.5,3.98525]
[1750114769767,0.77725,2572.2,2571.5,3.98525]
[1750114769768,6.69e-06,2571.6,2571.5,12.19305]
[1750114769968,6.69e-06,2571.6,2571.5,17.16225]
[1750114770266,6.69e-06,2571.6,2571.5,3.98525]
[1750114770467,6.69e-06,2571.6,2571.5,23.45225]
[1750114772062,3.2078,2571.8,2571.5,23.45225]
[1750114772063,3.2078,2572.7,2571.7,1.94342]
[1750114772367,6.29752536,2573.1,2572.6,3.20779331]
[1750114772565,3.2078,2572.9,2572.7,3.98486331]
[1750114773276,3.2078,2572.9,2572.7,0.77707]
[1750114773567,6.29752536,2572.8,2572.5,0.00583669]
[1750114773762,3.2078,2572.6,2572.5,0.00583669]
[1750114773963,3.98492,2572.6,2572.5,0.00583669]
[1750114774164,8.98492,2572.6,2572.5,0.00583669]
[1750114775860,0.00583669,2573.1,2572.5,8.21363669]
[1750114776068,7.0998,2574.6,2572.5,8.21363669]
[1750114776069,2.16836711,2574.5,2573.5,1.94205]
[1750114776369,9.50532536,2574.0,2573.6,48.6229]
[1750114776571,9.50532536,2574.0,2573.6,40.8]
[1750114776763,12.71896205,2574.0,2573.0,3.2078]
[1750114776964,6.29752536,2573.3,2573.2,0.00583669]
[1750114777366,9.51116205,2573.3,2573.2,0.00583669]
[1750114777866,9.51116205,2573.3,2572.7,71.7519]
[1750114777867,0.77698,2573.1,2572.7,0.77707]
[1750114778071,6.29752536,2572.9,2572.6,44.789]
[1750114778270,3.2078,2573.0,2572.6,44.789]
[1750114778573,3.2078,2573.0,2572.9,0.77703]
[1750114779170,3.2078,2573.0,2572.7,0.00583669]
[1750114779372,3.2078,2573.0,2572.8,0.77704]
[1750114779976,3.2078,2573.0,2572.9,0.77703]
[1750114780168,3.2078,2573.0,2572.8,0.77705]
[1750114780471,3.2078,2573.0,2572.7,0.00583669]
[1750114780772,3.2078,2573.0,2572.9,0.77703]
[1750114781371,3.2078,2573.0,2572.8,0.77704]
[1750114781576,3.2078,2573.0,2572.9,0.77703]
[1750114781972,3.2078,2573.0,2572.7,0.00583669]
[1750114782171,3.2078,2573.0,2572.8,0.77706]
[1750114782365,3.2078,2573.0,2572.9,0.77703]
[1750114783581,3.2078,2573.0,2572.8,0.77704]
[1750114783773,3.2078,2573.0,2572.9,0.77703]
[1750114784074,3.2078,2571.3,2569.9,7.65438521]
[1750114784276,3.2078,2570.2,2570.0,0.07782101]
[1750114784670,6.1937,2570.1,2570.0,0.07782101]
[1750114784876,3.2078,2570.2,2570.1,3.45637957]
[1750114785071,3.2078,2570.2,2570.1,3.53419755]
[1750114785973,9.8963,2570.2,2570.1,3.53419755]
[1750114786169,9.8963,2570.2,2570.1,3.45637957]
[1750114786677,9.8963,2570.2,2569.9,0.00583669]
[1750114786876,10.67415,2570.2,2569.9,0.00583669]
[1750114787981,9.8963,2570.2,2569.9,0.00583669]
[1750114788185,3.2078,2570.2,2570.1,3.45637957]
[1750114789776,3.2078,2570.2,2570.1,4.23424957]
[1750114791485,3.2078,2570.2,2570.1,9.23424957]
[1750114792587,0.00583669,2570.4,2570.3,0.77781]
[1750114792781,0.00583669,2570.4,2570.3,17.06518957]
[1750114792983,0.00583669,2570.4,2570.3,3.45637957]
[1750114793594,0.00583669,2570.4,2570.3,4.23418957]
[1750114794083,0.00583669,2570.4,2570.3,9.23418957]
[1750114794281,3.2078,2571.2,2570.3,10.15229]
[1750114794488,3.2078,2570.8,2570.7,0.77769]
[1750114794677,3.2078,2570.8,2570.7,54.40869]
[1750114794889,3.2078,2570.8,2570.7,62.85923288]
[1750114795188,3.2078,2570.8,2570.7,69.61763288]
[1750114795381,0.00583669,2571.0,2570.9,0.77763]
[1750114795581,0.00583669,2571.0,2570.9,4.22817288]
[1750114795882,0.00583669,2571.0,2570.9,3.45054288]
[1750114796282,0.00583669,2571.0,2570.9,4.22817288]
[1750114796787,0.00583669,2571.0,2570.9,3.45054288]
[1750114797177,0.78343669,2571.0,2570.9,3.45054288]
[1750114797383,0.00583669,2571.0,2570.9,3.45054288]
[1750114797688,0.78343669,2571.0,2570.9,3.45054288]
[1750114797885,0.78343669,2571.0,2570.7,12.831]
[1750114798084,3.2078,2570.8,2570.7,13.60868]
[1750114798482,3.2078,2570.8,2570.7,3.45054288]
[1750114798691,3.2078,2570.8,2570.7,16.28154288]
[1750114799393,3.2078,2570.8,2570.3,12.831]
[1750114799585,3.2078,2570.4,2570.3,13.60881]
[1750114799980,3.2078,2570.4,2570.3,17.05935288]
[1750114800593,3.2078,2570.4,2570.0,57.632]
[1750114800886,3.98567,2570.1,2570.0,61.08254288]
[1750114801089,3.98567,2570.1,2570.0,12.831]
[1750114801295,0.7779,2570.0,2569.9,0.00583669]
[1750114801488,0.7779,2570.0,2569.0,20.7026]
[1750114801489,14.97548965,2570.0,2569.0,20.7026]
[1750114801799,0.77802,2569.6,2569.5,3.45054288]
[1750114802002,3.2078,2569.6,2569.3,12.832]
[1750114802185,3.2078,2569.6,2569.5,4.22859288]
[1750114802381,3.2078,2569.6,2569.5,3.45054288]
[1750114802585,3.2078,2569.6,2569.5,0.77805]
[1750114802782,3.2078,2569.6,2569.4,0.77807]
[1750114802989,3.2078,2569.6,2569.5,4.22859288]
[1750114803887,0.00583669,2569.8,2569.5,9.22859288]
[1750114804083,0.00583669,2569.8,2569.7,4.22853288]
[1750114805895,3.21363669,2569.8,2569.7,4.22853288]
[1750114806095,6.69e-06,2569.8,2569.7,9.22853288]
[1750114806291,3.2078,2570.5,2569.7,38.602]
[1750114806600,3.2078,2571.2,2571.1,0.77757]
[1750114806994,3.2078,2571.2,2571.1,9.22811288]
[1750114807191,3.2078,2571.5,2571.4,0.77748]
[1750114807392,3.2078,2571.5,2571.3,12.834]
[1750114807799,3.2078,2571.5,2571.4,3.45054288]
[1750114808399,3.2078,2571.5,2571.4,4.22802288]
[1750114811409,3.2078,2571.5,2571.2,0.00583669]
[1750114811604,6.29987341,2571.4,2571.3,4.22804288]
[1750114812007,6.29987341,2571.4,2571.3,0.7775]
[1750114812504,6.29987341,2571.4,2571.2,0.00583669]
[1750114812710,6.29987341,2571.4,2571.3,0.77751]
[1750114812905,6.29987341,2571.4,2571.3,4.22805288]
[1750114813211,3.2078,2571.5,2571.4,0.77748]
[1750114813410,3.2078,2571.5,2571.4,4.22802288]
[1750114815010,3.2078,2571.5,2571.4,3.45054288]
[1750114815211,3.98525,2571.5,2571.2,0.78335669]
[1750114815409,6.29987341,2571.3,2571.2,4.23389957]
[1750114815614,6.29987341,2571.3,2571.2,3.45637957]
[1750114815805,6.29987341,2571.3,2571.2,0.00583669]
[1750114816307,0.00583669,2571.7,2571.4,0.77748]
[1750114816514,0.00583669,2571.7,2571.6,1.97635288]
[1750114816808,0.00583669,2571.7,2571.6,55.6024632]
[1750114817115,6.29987341,2572.5,2572.4,0.77718]
[1750114817317,9.50767341,2572.5,2572.4,1.97610619]
[1750114817907,9.50767341,2572.5,2572.4,1.19892619]
[1750114818112,9.50767341,2572.5,2571.8,6.4381]
[1750114818409,6.29987341,2572.7,2572.6,0.77711]
[1750114818604,6.29987341,2572.7,2572.6,1.97603619]
[1750114818605,9.50767341,2572.7,2572.6,1.97603619]
[1750114819111,9.50767341,2572.7,2572.6,1.19892619]
[1750114819412,14.50767341,2572.7,2572.0,0.77728]